Cogmind - Beta 10.2 *** ADVENTURER MODE // 2021.08.07 @ 20:24:06 Player: Ender Result: Destroyed by as-83988 with Assembled Heavy Rifle Performance ------------- Evolutions (0) 0 Regions Visited (2) 400 Robots Destroyed (18) 90 Value Destroyed (357) 357 Prototype IDs (4) 80 Alien Tech Used (0) 0 Bonus (14) 14 TOTAL SCORE: 941 Bonus ------- Follower Combat Kills 14 Cogmind --------- Core Integrity 0/250 Matter 300/300 Energy 99/100 System Corruption 2% Temperature Cool (0) Movement Core (150) Ox2 Location -10/Mines Parts ------- > --- POWER (1) -------- (None) > --- PROPULSION (2) --- (None) > --- UTILITY (2) ------ Medium Storage Unit > --- WEAPON (2) ------- (None) > --- INVENTORY (8) ---- Ion Engine Armored Wheel Armored Wheel Structural Scanner Visual Processing Unit Terrain Scanner ECM Suite Light Assault Rifle Peak State ------------ > --- POWER ------------ Ion Engine > --- PROPULSION ------- Armored Wheel Armored Wheel > --- UTILITY ---------- Medium Storage Unit Sensor Array > --- WEAPON ----------- Assault Rifle Light Assault Rifle > --- INVENTORY -------- Ion Engine Armored Wheel Armored Wheel Structural Scanner Visual Processing Unit Terrain Scanner ECM Suite Light Assault Rifle [Rating: 10] Favorites ----------- Power Ion Engine Engine Ion Engine Propulsion Aluminum Leg Leg Aluminum Leg Wheel Armored Wheel Utility Sensor Array Device Sensor Array Storage Small Storage Unit Weapon Light Assault Rifle Energy Gun EM Pulse Gun Ballistic Gun Light Assault Rifle Ballistic Cannon Light Cannon Build | -11 -10 -10 ------- Run | Scr Mat Min Slots Evolved . | . . . Power . | . . . Propulsion . | . . . Utility . | . . . Weapon . | . . . Parts Attached 26 | 5 18 3 Power 1 | 1 . . Engine 1 | 1 . . Core . | . . . Reactor . | . . . Propulsion 12 | 2 10 . Treads . | . . . Leg 7 | . 7 . Wheel 5 | 2 3 . Hover . | . . . Flight . | . . . Utility 4 | 1 3 . Device 2 | . 2 . Storage 2 | 1 1 . Processor . | . . . Hackware . | . . . Protection . | . . . Artifact . | . . . Weapon 9 | 1 5 3 Energy Gun 2 | 1 1 . Energy Cannon . | . . . Ballistic Gun 6 | . 3 3 Ballistic Cannon 1 | . 1 . Launcher . | . . . Special Weapon . | . . . Impact Weapon . | . . . Slashing Weapon . | . . . Piercing Weapon . | . . . Special Melee Weapon . | . . . Unidentified Prototypes . | . . . Parts Lost 9 | . 3 6 Power 1 | . . 1 Propulsion 2 | . . 2 Utility 2 | . 1 1 Weapon 4 | . 2 2 Highest Loss Streak 5 | . 2 5 Average Slot Usage (%) 95 | . 97 84 Engine 13 | . 14 13 Leg 18 | . 21 . Wheel 8 | . 5 26 Device 11 | . 12 6 Storage 14 | . 14 14 Energy Gun 5 | . 5 . Ballistic Gun 21 | . 20 23 Naked Turns . | . . . Heaviest Build 17 | 11 17 17 Greatest Support 26 | 26 26 24 Greatest Overweight (x) 2 | . 1 2 Average Overweight (x) . | . . . Largest Inventory Capacity 8 | 6 8 8 Average Capacity 6 | 5 6 8 Most Carried 8 | 6 8 8 Average Carried 6 | 3 6 8 Final Capacity 8 | 6 8 8 Final Carried 8 | 6 8 8 Class Distribution -------------------- 100% | Mutant Dominant Class ---------------- Mutant | -10/Materials Mutant | -10/Mines Resources | -11 -10 -10 ----------- Run | Scr Mat Min Matter Collected 559 | 135 340 84 Remotely . | . . . Salvage Created 723 | . 675 48 Parts 42 | . 39 3 Haulers Intercepted . | . . . Recyclers Shooed 1 | . 1 . Parts Field Recycled . | . . . Retrieved Matter . | . . . Parts Self-Destructed . | . . . Prevented . | . . . Kills | -11 -10 -10 ------- Run | Scr Mat Min Combat Hostiles Destroyed 13 | . 10 3 Guns 11 | . 8 3 AOE 1 | . 1 . Classes Destroyed 7 | . 6 1 Worker 1 | . 1 . Builder 1 | . 1 . Recycler 3 | . 3 . Watcher 2 | . 2 . Swarmer 4 | . 3 1 Grunt 7 | . 7 . Assembled 2 | . . 2 Best Kill Streak 5 | . 5 1 Combat Bots Only 4 | . 4 1 Max Kills in Single Turn 2 | . 2 1 Gunslinging 1 | . 1 . Exploded 1 | . 1 . Melee . | . . . Uniques/NPCs Destroyed . | . . . Combat | -11 -10 -10 -------- Run | Scr Mat Min Damage Taken 1018 | . 297 721 Core 255 | . 48 207 Absorbed by Shields . | . . . Core Remaining (%) 100 | 100 . . Volleys Fired 46 | 1 37 8 Largest 2 | 1 2 2 Hottest 80 | 40 80 40 Shots Fired 88 | 1 71 16 Gun 87 | 1 70 16 Cannon 1 | . 1 . Launcher . | . . . Special . | . . . Kinetic 65 | . 49 16 Thermal . | . . . Explosive . | . . . Electromagnetic 23 | 1 22 . Robot Hit Streak 14 | 1 14 3 Robot Miss Streak 4 | . 4 2 Penetration Max . | . . . Secondary Targets 3 | . 1 2 Max Gunslinging Chain 1 | . 1 1 Shots Hit Robots 63 | 1 52 10 Core Hits 32 | . 26 6 Critical Hits . | . . . Critical Kills . | . . . Critical Parts Destroyed . | . . . Melee Attacks . | . . . Impact . | . . . Slashing . | . . . Piercing . | . . . Sneak Attacks . | . . . Combat Hostiles . | . . . Follow-up Attacks . | . . . Damage Inflicted 749 | 15 644 90 Guns 651 | 15 547 89 Cannons 17 | . 17 . Explosions 80 | . 80 . Melee . | . . . Ramming 1 | . . 1 Kinetic 471 | . 382 89 Thermal 80 | . 80 . Explosive . | . . . Electromagnetic 197 | 15 182 . Impact . | . . . Slashing . | . . . Piercing . | . . . Highest Corruption 2 | . . 2 Average Corruption 1 | . . 1 Corruption Purged . | . . . Effects 1 | . . 1 Targeting Errors 1 | . . 1 Overload Shots . | . . . Overflow Damage 2 | . 2 . Projectiles 2 | . 2 . Explosions . | . . . Melee . | . . . Knockbacks . | . . . Impact . | . . . Kinetic . | . . . Secondary . | . . . Self-Inflicted Damage 12 | . 12 . Shots 1 | . 1 . Rammed 1 | . . 1 Targets Rammed 1 | . . 1 Kicked . | . . . Crushed . | . . . Highest Temperature 46 | . 46 20 Average Temperature 24 | . 24 20 Received Heat Transfer 209 | . 162 47 Siege Activations . | . . . Robots Corrupted 1 | . 1 . Combat Hostiles 1 | . 1 . Parts Fried 2 | . 2 . Impact Corruptions . | . . . Robots Melted . | . . . Combat Hostiles . | . . . Parts Melted . | . . . Heat Transferred 50 | . 50 . Parts Sabotaged . | . . . Parts Stolen . | . . . Parts Stripped . | . . . Power Chain Reactions 1 | . 1 . Missiles Intercepted . | . . . Alert | -11 -10 -10 ------- Run | Scr Mat Min Peak Influence 322 | . 322 89 Initial . | . . . Average 106 | . 125 39 Maximum Alert Level 1 | . 1 . Low Security (%) 86 | 100 83 100 Level 1 13 | . 16 . Level 2 . | . . . Level 3 . | . . . Level 4 . | . . . Level 5 . | . . . High Security . | . . . Max Security . | . . . Squads Dispatched 1 | . 1 . Investigation 1 | . 1 . Extermination . | . . . Reinforcement . | . . . Assault . | . . . Garrison . | . . . Intercept . | . . . Construction Impeded . | . . . Haulers Reinforced . | . . . Stealth | -11 -10 -10 --------- Run | Scr Mat Min Distress Signals 2 | . 2 . Communications Jammed . | . . . Distress Signals . | . . . Times Spotted 30 | . 15 15 Peak Tracking Total 10 | . 4 10 Tactical Retreats 2 | . . 2 Traps | -11 -10 -10 ------- Run | Scr Mat Min Traps Triggered 1 | . 1 . Indirectly . | . . . Trap Hack Attempts . | . . . Triggered . | . . . Disarmed . | . . . Reprogrammed . | . . . Reused . | . . . Traps Extracted . | . . . Installed . | . . . Triggered . | . . . Machines | -11 -10 -10 ---------- Run | Scr Mat Min Machines Disabled 1 | . 1 . Max in Single Turn 1 | . 1 . Machines Sabotaged . | . . . Garrisons Compromised . | . . . Overloaded Fab Kills . | . . . Fab Network Shutdowns . | . . . Hacking | -11 -10 -10 --------- Run | Scr Mat Min Machines Accessed 7 | . 7 . Terminals 6 | . 6 . Fabricators . | . . . Repair Stations . | . . . Recycling Units 1 | . 1 . Scanalyzers . | . . . Garrison Access . | . . . Total Hacks 18 | . 18 . Successful 9 | . 9 . Failed 9 | . 9 . Catastrophic 2 | . 2 . Database Lockouts . | . . . Manual 1 | . 1 . Terminals 16 | . 16 . Fabricators . | . . . Repair Stations . | . . . Recycling Units 2 | . 2 . Scanalyzers . | . . . Garrison Access . | . . . Terminal Hacks 8 | . 8 . Prototype ID Bank 2 | . 2 . Locate Traps 1 | . 1 . Maintenance Status 1 | . 1 . Assault Status 1 | . 1 . Registered Components 1 | . 1 . Zone Layout 2 | . 2 . Fabricator Hacks . | . . . Repair Station Hacks . | . . . Recycling Unit Hacks 1 | . 1 . Retrieve Components 1 | . 1 . Scanalyzer . | . . . Garrison Access Hacks . | . . . Unauthorized Hacks . | . . . Terminals . | . . . Fabricators . | . . . Repair Stations . | . . . Recycling Units . | . . . Scanalyzers . | . . . Garrison Access . | . . . Data Cores Recovered . | . . . Used . | . . . Hacking Detections 6 | . 6 . Full Trace Events . | . . . Feedback Events . | . . . Feedback Blocked . | . . . Robot Schematics Acquired . | . . . Robots Built . | . . . Matter . | . . . Time . | . . . Total Robot Build Rating . | . . . Part Schematics Acquired . | . . . Parts Built . | . . . Matter . | . . . Time . | . . . Total Part Build Rating . | . . . Parts Repaired . | . . . Time . | . . . Parts Recycled . | . . . Recycled Matter . | . . . Retrieved Matter . | . . . Retrieved Components 10 | . 10 . Parts Scanalyzed . | . . . Part Schematics Acquired . | . . . Parts Damaged . | . . . Bothacking | -11 -10 -10 ------------ Run | Scr Mat Min Used RIF Installer . | . . . Robots Hacked . | . . . Non-combat . | . . . Combat . | . . . Robot Hacks Applied . | . . . Relay Couplers Released . | . . . Robots Rewired . | . . . Allies Hacked . | . . . Hacks Repelled . | . . . Allies | -11 -10 -10 -------- Run | Scr Mat Min Total Allies 2 | . . 2 Largest Group 2 | . . 2 Highest-Rated Group 41 | . . 41 Highest-Rated Ally 31 | . . 31 Total Orders . | . . . Ally Attacks 5 | . . 5 Total Damage 63 | . . 63 Kills 2 | . . 2 Allies Corrupted . | . . . Allies Melted . | . . . Intel | -11 -10 -10 ------- Run | Scr Mat Min Robot Analysis Total . | . . . Derelict Logs Recovered 1 | . . 1 Drone Launches . | . . . Drone Recoveries . | . . . Exploration | -11 -10 -10 ------------- Run | Scr Mat Min Turns Passed 1060 | 63 854 143 Spaces Moved 744 | 57 579 108 Core 14 | 10 . 4 Treads . | . . . Legs 434 | . 434 . Wheels 296 | 47 145 104 Hover . | . . . Flight . | . . . Fastest Speed 50 | 50 90 90 Average Speed 107 | 82 112 92 Slowest Speed 150 | 90 150 150 Overloaded Moves . | . . . Propulsion Burnouts . | . . . Robots Hopped . | . . . Cave-ins Triggered . | . . . Exploration Rate (%) 39 | 4 81 33 Regions Visited 2 Branch Regions 1 Pre-discovered Areas 1 | . . 1 Known Exits Taken . | . . . Unknown Exits Taken 2 | 1 1 . Scrap Searched 1 | . . 1 Spaces Dug . | . . . Terrain Destroyed 2 | . 2 . Melee . | . . . Projectile . | . . . AOE 2 | . 2 . Terrain Rammed . | . . . Walls Destroyed . | . . . Machines Disabled . | . . . Actions | -11 -10 -10 --------- Run | Scr Mat Min Total 924 | 70 716 138 Wait 76 | . 59 17 Move 742 | 56 578 108 Hop . | . . . Pick Up 17 | 8 9 . Fast Attach 10 | 3 7 . Attach 4 | 2 2 . Detach . | . . . Swap 12 | . 9 3 Drop 16 | . 15 1 Fire 46 | 1 37 8 Melee . | . . . Ram 1 | . . 1 Kick . | . . . Crush . | . . . Escape Stasis . | . . . Rewire . | . . . Trap . | . . . Miscellaneous . | . . . Route ------- -11/Scrapyard -10/Materials (discovered 2 exits: [*Mat] / [*Min]) -10/Mines History --------- Turn | Location | Event 22 | -11/Scrapyard | Discovered new exit (range 15) 64 | -11/Scrapyard | Entered Materials 309 | -10/Materials | Build established: Mutant 843 | -10/Materials | Discovered new exit (range 6) 871 | -10/Materials | Discovered new exit (range 6) 918 | -10/Materials | Entered Mines 973 | -10/Mines | Assembled infested the area 1011 | -10/Mines | Learned location of Storage (-7) 1049 | -10/Mines | Core integrity fell below 50% 1058 | -10/Mines | Core integrity fell below 20% 1061 | -10/Mines | Destroyed by as-83988 with Assembled Heavy Rifle Last Messages --------------- 00998_ as-17129 destroyed. 01005_ J8-JFX(z) destroyed. 01011_ Acquired derelict log, extracted data. World map updated: -7/Storage. 01019_ as-55605 destroyed. 01019_ Switching to secondary target: as-26754. 01021_ Acquired 16 matter. 01022_ Searching scrap... 01022_ Found Lgt. Treads. 01022_ Found EM Pulse Gun. 01022_ Found Lgt. Treads. 01022_ Found Sml. Laser. 01022_ Found 16 Matter. 01023_ Acquired 16 matter. 01024_ Assault Rifle destroyed. 01054_ Lgt. Assault Rifle destroyed. 01054_ Arm. Wheel destroyed. 01054_ Ion Engine destroyed. 01056_ Y-45 Defender destroyed. 01056_ Arm. Wheel destroyed. Map ----- +----------------------------------------------------+ | ??????????????????????????????????## ### | | ??????????????????????????????????# | | ??????????????????????????????????# | | ??????????????????????????????????## | | ???????????????????????????????????## | | ????????????????????????????????????# | | ????????????????????????????????????# | | ????????????????????????????????????## | | ??????????????# ############????????### # | | ??????????????# #?????????## # | | ??????????????######## #### #???####### | | ????????????######???# #??# #???# | | ???????????##"!!"##### #??# #???# #### | | ???????????#""!!""## #??# #???# #??## | | ???????????# ## #??# #???# #???# | | ????????????# *% ## #??# #???# #??? " | | ??????????####//## a #??# #???#[#??? | | ??????????# [[=aaaa ##??# #####[## ## | | ??????????# ##???# = = % ##? | | ??????????# ##????########### ##?? | | ??????????## #???????????????###???? | | ???????????####### #?????????????????????? | | ?????????????????# #?????????????????????? | | ?????????????????# #?????????????????????? | | ?????????????????# #?????????????????????? | | ?????????????????#@ #?????????????????????? | | ?????????????????# #?????????????????????? | | ?????????????????# #?????????????????????? | | ????????????????? #?????????????????????? | | ????????????????? ?????????????????????? | | ?????????????????"" ?????????????????????? | | ?????????????????"" #????????????????????? | | ????????????????""" ????????????????????? | | ???????????????? ????????????????????? | | ????????????????? #???????????????????? | | ??????????????????? ##???????????????????? | | ??????????????????? #????????????????????? | | ??????????????????? ????????????????????? | | ???????????????????? ????????????????????? | | ???????????????????? ????????????????????? | | ???????????????????? ?????????????????????? | | ??????????????????????????????????????????? | | ??????????????????????????????????????????? | | ??????????????????????????????????????????? | | ??????????????????????????????????????????? | | ??????????????????????????????????????????? | | ??????????????????????????????????????????? | | ??????????????????????????????????????????? | | ??????????????????????????????????????????? | | ??????????????????????????????????????????? | +----------------------------------------------------+ Best States ------------- Heat Dissipation 35 Energy Generation 10 Energy Capacity 250 Matter Stores 300 Matter Capacity 300 Sight Range 16 Robot Scan Range 10 Terrain Scan Density 10 Resistance: KI 20 Resistance: TH 20 Resistance: EX 20 Resistance: EM 20 Resistance: I 20 Resistance: S 20 Resistance: P 20 Evasion (%) 50 Offensive Hacking 10 Item Schematics ----------------- None Robot Schematics ------------------ None Fabricated ------------ Nothing Alien Tech Used ----------------- None Achievements -------------- None Challenges ------------ None Game ------ Seed BiomechanicalColdProjector Manual? 0 Play Time 00:19:33 Cumulative 31.5 hours Start 2021.08.07 @ 20:01:30 End 2021.08.07 @ 20:24:06 Sessions 1 Manual Loads 0 Difficulty Adventurer Special Mode None Game No. 9 Rogue 0 Adventurer 8 Explorer 1 Win Type - Total 0 Types 0/0/0/0/0/0/0/0/0 Lore% 20 Gallery% 30 Achievement% 22 Wizard Run 0 Options --------- ASCII 0 Keyboard 0 Movement Mouse Keybinds 0 Fullscreen 2 Font 18/X11 Map View 76x50 Tactical HUD 1 Map Filters NONE Filters NONE Steam 1 RUN: 677ad7aa-5185-406e-b3ee-96e9f15ed4be